bitfinex-derivatives/quotes_BTCF0:USTF0_20251128
["timestamp","ask_amount","ask_price","bid_price","bid_amount"]
[1764347404725,0.1000677,91167.0,91166.0,0.00027423]
[1764347405021,0.1000677,91167.0,91156.0,0.00010098]
[1764347405022,0.1000688,91158.0,91156.0,0.00010098]
[1764347405216,0.14015179,91158.0,91156.0,0.00010098]
[1764347405418,0.50015179,91158.0,91156.0,0.00010098]
[1764347405626,0.50015179,91158.0,91119.0,0.05]
[1764347405627,0.0891,91157.0,91130.0,0.0109721]
[1764347405826,0.1000696,91151.0,91150.0,0.00054165]
[1764347406023,0.8800696,91151.0,91150.0,0.00054165]
[1764347406523,0.0891,91127.0,91119.0,0.05]
[1764347406731,0.08921029,91127.0,91120.0,0.25456237]
[1764347407025,0.42921029,91127.0,91120.0,0.25456237]
[1764347407219,0.46921029,91127.0,91119.0,0.06512768]
[1764347407421,0.83921029,91127.0,91119.0,0.05]
[1764347407624,0.0891,91120.0,91119.0,0.05]
[1764347407827,9.091e-05,91120.0,91119.0,0.55887]
[1764347408029,9.091e-05,91120.0,91119.0,0.13887]
[1764347408220,0.04263091,91120.0,91119.0,0.09137]
[1764347408423,0.04263091,91120.0,91119.0,0.05]
[1764347408424,0.08919091,91120.0,91119.0,0.05]
[1764347408621,0.85919091,91120.0,91119.0,0.05]
[1764347408827,0.16919091,91120.0,91119.0,0.05]
[1764347409023,0.16919091,91120.0,91117.0,4.56e-06]
[1764347409024,0.0891,91118.0,91117.0,4.56e-06]
[1764347409229,0.7691,91118.0,91117.0,4.56e-06]
[1764347409430,0.8791,91118.0,91117.0,4.56e-06]
[1764347410226,0.0891,91087.0,91080.0,0.25456237]
[1764347410426,0.08922774,91087.0,91082.0,0.0109778]
[1764347410627,0.00012774,91087.0,91086.0,0.08914447]
[1764347410834,0.0109745,91111.0,91086.0,0.82027447]
[1764347411021,0.04254,91087.0,91086.0,0.00027447]
[1764347411223,0.1191,91087.0,91086.0,0.00027447]
[1764347411527,0.5191,91087.0,91086.0,0.00027447]
[1764347411726,0.1000785,91077.0,91060.0,0.25456237]
[1764347411922,0.1000785,91077.0,91028.0,0.02673]
[1764347411923,0.0109803,91063.0,91043.0,0.0109826]
[1764347412127,0.0891,91047.0,91040.0,0.25456237]
[1764347412326,0.0891,91047.0,91028.0,0.02673]
[1764347412528,0.0891,91047.0,91010.0,0.00999999]
[1764347412529,0.02111,91040.0,91017.0,0.0109857]
[1764347412731,0.02111,91040.0,90966.0,0.06622653]
[1764347412732,0.0891,91034.0,91022.0,0.0109851]
[1764347412937,0.00014162,91033.0,91020.0,0.25456237]
[1764347413124,0.00014162,91033.0,91020.0,0.26554767]
[1764347413329,0.05014162,91033.0,91020.0,0.25456237]
[1764347413528,0.00016475,91038.0,91020.0,0.25456237]
[1764347413924,0.02753,91070.0,91026.0,0.02673]
[1764347414237,0.0001132,91069.0,91046.0,0.0109822]
[1764347414424,0.5301132,91069.0,91050.0,0.25456237]
[1764347414623,0.6310927,91069.0,91051.0,0.0109817]
[1764347414936,0.6310927,91069.0,91059.0,0.25456237]
[1764347415136,0.2701132,91069.0,91059.0,0.25456237]
[1764347415324,0.0109796,91068.0,91059.0,0.25456237]
[1764347415528,0.0001132,91069.0,91059.0,0.25456237]
[1764347415736,0.0109802,91063.0,91059.0,0.25456237]
[1764347415936,0.04292,91056.0,91055.0,0.00016475]
[1764347416236,0.08470671,91056.0,91055.0,0.00016475]
[1764347417233,0.01012671,91056.0,91040.0,0.25456237]
[1764347417430,0.0109829,91041.0,91040.0,0.25456237]
[1764347417631,8.905e-05,91041.0,91036.0,0.01616141]
[1764347417834,8.905e-05,91041.0,91032.0,0.010984]
[1764347418034,8.905e-05,91041.0,91036.0,0.0109834]
[1764347418436,8.905e-05,91041.0,91040.0,0.0802]
[1764347419138,0.00016475,91046.0,91045.0,0.0802]
[1764347419639,0.0109801,91065.0,91050.0,0.0109818]
[1764347419835,0.0109808,91059.0,91058.0,0.04068]
[1764347420140,0.01105793,91059.0,91058.0,0.04068]
[1764347420636,7.713e-05,91059.0,91058.0,0.0802]
[1764347420836,7.713e-05,91059.0,91058.0,0.0911808]
[1764347421037,0.00016475,91068.0,91067.0,0.0802]
[1764347421239,0.0109749,91108.0,91074.0,0.0802]
[1764347421438,0.0109781,91081.0,91080.0,0.25456237]
[1764347421639,0.74763,91098.0,91071.0,0.25456237]
[1764347421640,0.0109788,91075.0,91071.0,0.25456237]
[1764347422439,0.0109783,91079.0,91078.0,0.04068]
[1764347422844,0.00016475,91082.0,91081.0,0.04068]
[1764347423030,0.00016475,91082.0,91081.0,0.0802]
[1764347425039,0.0109791,91073.0,91072.0,0.05660984]
[1764347425241,0.0109791,91073.0,91072.0,0.04068]
[1764347425439,0.0109786,91077.0,91076.0,0.0802]
[1764347425637,0.00016475,91082.0,91076.0,0.0802]
[1764347425638,0.0109781,91081.0,91076.0,0.0802]
[1764347425842,0.0109781,91081.0,91080.0,0.0802]
[1764347427044,0.0119781,91081.0,91080.0,0.0802]
[1764347427251,0.001,91081.0,91080.0,0.0802]
[1764347428251,0.001,91081.0,91080.0,0.1711782]
[1764347428441,0.010972,91132.0,91104.0,0.0802]
[1764347428442,0.0109752,91105.0,91104.0,0.0802]
[1764347428643,0.010972,91132.0,91104.0,0.0802]
[1764347428644,0.0109747,91109.0,91104.0,0.0802]
[1764347428851,0.02508,91131.0,91104.0,0.0802]
[1764347429052,0.0109747,91109.0,91108.0,0.0802]
[1764347430339,0.0109752,91105.0,91104.0,0.001]
[1764347430550,0.0109752,91105.0,91104.0,0.04168]
[1764347430850,0.0538952,91105.0,91104.0,0.001]
[1764347431452,0.0109752,91105.0,91104.0,0.0812]
[1764347431653,0.0538952,91105.0,91104.0,0.001]
[1764347431954,0.0109758,91100.0,91099.0,0.25472703]
[1764347432153,0.0109758,91100.0,91099.0,0.00016466]
[1764347432557,0.0109754,91104.0,91103.0,0.08145]
[1764347432850,0.00016466,91118.0,91117.0,0.08145]
[1764347435757,0.0109713,91138.0,91137.0,0.08145]
[1764347435943,0.0109713,91138.0,91110.0,0.0326945]
[1764347435944,0.0109732,91121.0,91110.0,0.0326945]
[1764347436143,0.0109732,91121.0,91120.0,0.08145]
[1764347436652,0.0109714,91136.0,91135.0,0.08145]
[1764347437161,0.001,91138.0,91137.0,0.08145]
[1764347437361,0.0119712,91138.0,91137.0,0.08145]
[1764347437562,0.0109712,91138.0,91137.0,0.08145]
[1764347437767,0.00016466,91145.0,91144.0,0.08145]
[1764347438159,0.01113506,91145.0,91144.0,0.08145]
[1764347438358,0.04887506,91145.0,91144.0,0.04128]
[1764347438554,0.0109714,91137.0,91136.0,0.08145]
[1764347439265,0.0887714,91137.0,91127.0,0.20332331]
[1764347439456,0.0778,91127.0,91126.0,0.00016466]
[1764347439657,0.0109724,91128.0,91126.0,0.00016466]
[1764347439658,0.0109724,91128.0,91127.0,0.08145]
[1764347439864,0.0109707,91142.0,91141.0,0.04017]
[1764347440067,0.00116466,91145.0,91144.0,0.08145]
[1764347440766,0.22815331,91200.0,91186.0,0.08145]
[1764347440767,0.0109654,91187.0,91186.0,0.08145]
[1764347441154,0.0109649,91191.0,91186.0,0.08145]
[1764347441360,0.02483,91200.0,91186.0,0.08145]
[1764347441567,0.02483,91200.0,91170.0,0.02339]
[1764347441568,0.0109629,91208.0,91199.0,0.04128]
[1764347441862,0.00016446,91213.0,91212.0,0.08145]
[1764347442256,0.0109576,91252.0,91216.0,0.02583]
[1764347442453,0.81483,91245.0,91230.0,0.20332331]
[1764347442654,0.06,91245.0,91230.0,0.20332331]
[1764347442961,0.02483,91264.0,91245.0,0.04128]
[1764347443361,0.00010289,91255.0,91254.0,0.08145]
[1764347443562,0.02483,91296.0,91271.0,0.08145]
[1764347443767,0.0109551,91273.0,91272.0,0.04128]
[1764347443963,0.02483,91296.0,91272.0,0.04128]
[1764347444171,0.82483,91296.0,91272.0,0.04128]
[1764347444465,0.0109552,91272.0,91270.0,0.20332331]
[1764347444762,0.02483,91296.0,91262.0,0.20348768]
[1764347445070,0.03774,91281.0,91280.0,0.20332331]
[1764347445364,0.0778,91263.0,91262.0,0.00016437]
[1764347445566,0.4578,91263.0,91262.0,0.00016437]
[1764347445767,0.6478,91263.0,91262.0,0.00016437]
[1764347445966,0.4578,91263.0,91262.0,0.00016437]
[1764347446465,0.0887576,91251.0,91250.0,0.20332331]
[1764347446667,0.0109589,91241.0,91240.0,0.20332331]
[1764347446963,0.02483,91260.0,91182.0,0.0548296]
[1764347446964,0.02483,91260.0,91231.0,0.20332331]
[1764347447164,0.41483,91260.0,91240.0,0.20332331]
[1764347447365,0.0109576,91251.0,91250.0,0.20332331]
[1764347447565,0.0109587,91242.0,91241.0,0.20348768]
[1764347447965,0.02499407,91260.0,91242.0,0.02583]
[1764347447966,0.0109572,91255.0,91242.0,0.02583]
[1764347448373,0.01112077,91260.0,91242.0,0.02583]
[1764347448574,0.00016407,91260.0,91259.0,0.04128]
[1764347448872,0.00016407,91260.0,91259.0,0.08145]
[1764347449960,0.00016407,91260.0,91250.0,0.20332331]
[1764347449961,0.010957,91257.0,91251.0,0.08145]
[1764347450369,0.00116407,91260.0,91251.0,0.08145]
[1764347450568,0.00116407,91260.0,91259.0,0.08145]
[1764347451074,0.01212077,91260.0,91259.0,0.08145]
[1764347451260,0.00116407,91260.0,91259.0,0.08145]
[1764347451661,0.00116407,91260.0,91250.0,0.20332331]
[1764347451662,0.0109542,91280.0,91279.0,0.04128]
[1764347451859,0.0109552,91272.0,91265.0,0.20332331]
[1764347452071,0.02483,91290.0,91265.0,0.20332331]
[1764347452268,0.0109513,91304.0,91280.0,0.20332331]
[1764347452463,0.0109539,91283.0,91282.0,0.08145]
[1764347453676,0.03774,91274.0,91273.0,0.20348768]
[1764347453866,0.0486949,91274.0,91273.0,0.00016437]
[1764347454067,0.02483,91296.0,91273.0,0.00016437]
[1764347454262,0.0109548,91275.0,91273.0,0.00016437]
[1764347455079,0.0778,91274.0,91273.0,0.00016437]
[1764347455381,0.0878,91274.0,91273.0,0.00016437]
[1764347455863,0.0109547,91276.0,91273.0,0.00016437]
[1764347457069,0.0778,91274.0,91273.0,0.00016437]
[1764347457471,0.0788,91274.0,91273.0,0.00016437]
[1764347457670,0.0887564,91261.0,91260.0,0.20332331]
[1764347457873,0.0109568,91258.0,91251.0,0.20332331]
[1764347458179,0.001,91274.0,91255.0,0.0109571]
[1764347458381,0.0778,91265.0,91264.0,0.20332331]
[1764347458583,0.00116437,91274.0,91264.0,0.20332331]
[1764347458880,0.001,91261.0,91260.0,0.20332331]
[1764347459081,0.001,91261.0,91256.0,0.010957]
[1764347459582,0.0109565,91261.0,91255.0,0.00016437]
[1764347459978,0.0109568,91258.0,91255.0,0.00016437]
[1764347460882,0.001,91261.0,91255.0,0.00016437]
[1764347461773,0.0109567,91259.0,91255.0,0.00016437]
[1764347461976,0.010957,91256.0,91255.0,0.00016437]
[1764347462578,0.001,91258.0,91255.0,0.00016437]
[1764347462782,0.00016437,91274.0,91273.0,0.010955]
[1764347462972,0.0109491,91322.0,91274.0,0.0109548]
[1764347463172,0.010952,91298.0,91275.0,0.20332331]
[1764347463375,0.0109527,91293.0,91288.0,0.21427641]
[1764347463679,0.0109503,91312.0,91286.0,0.0109533]
[1764347463884,0.0109531,91290.0,91286.0,0.0109533]
[1764347464280,0.0109483,91330.0,91283.0,0.20332331]
[1764347464585,0.0109516,91301.0,91300.0,0.20332331]
[1764347464777,0.0109527,91293.0,91291.0,0.20348758]
[1764347464977,0.0109527,91293.0,91291.0,0.00016427]
[1764347465177,0.0109503,91312.0,91291.0,0.00016427]
[1764347465178,0.0109518,91300.0,91291.0,0.00016427]
[1764347465486,0.0109496,91318.0,91313.0,0.0109502]
[1764347465687,0.0109496,91318.0,91291.0,0.38016427]
[1764347465688,0.0109496,91319.0,91308.0,0.20332331]
[1764347465982,0.0109492,91322.0,91312.0,0.0109502]
[1764347466286,0.00027375,91326.0,91316.0,0.0109498]
[1764347466482,0.00027375,91326.0,91312.0,0.20332331]
[1764347466686,0.01122245,91326.0,91316.0,0.20332331]
[1764347466982,0.0109492,91322.0,91306.0,0.010951]
[1764347467176,0.0109492,91322.0,91304.0,0.00016427]
[1764347467177,0.0109512,91305.0,91304.0,0.00016427]
[1764347467375,0.0109512,91305.0,91290.0,0.20332331]
[1764347467376,0.0109528,91291.0,91290.0,0.20332331]
[1764347467574,0.0109528,91291.0,91256.0,0.08578358]
[1764347467575,0.0109505,91311.0,91281.0,0.20332331]
[1764347467784,0.76,91311.0,91290.0,0.20332331]
[1764347467989,0.0109528,91291.0,91290.0,0.20332331]
[1764347468184,0.0109528,91291.0,91270.0,0.20332331]
[1764347468185,0.72,91291.0,91270.0,0.20332331]
[1764347468486,0.00016394,91290.0,91280.0,0.20332331]
[1764347468689,0.0109533,91288.0,91280.0,0.20332331]
[1764347468887,0.00016394,91290.0,91281.0,0.010954]
[1764347469086,0.0109531,91289.0,91278.0,0.20332331]
[1764347469389,0.0109542,91280.0,91278.0,0.20332331]
[1764347469578,0.00016394,91290.0,91271.0,0.00016427]
[1764347469579,0.0109532,91289.0,91271.0,0.00016427]
[1764347469780,0.00016394,91290.0,91279.0,0.20332331]
[1764347470080,0.00016394,91290.0,91280.0,0.20332331]
[1764347470283,0.00016394,91290.0,91286.0,0.0109534]
[1764347470484,0.00016394,91290.0,91286.0,0.3809534]
[1764347470897,0.0109496,91318.0,91292.0,0.0109527]
[1764347471092,0.0109516,91302.0,91298.0,0.0109519]
[1764347471386,0.010951,91307.0,91298.0,0.0109519]
[1764347471590,0.0109488,91325.0,91293.0,0.0109525]
[1764347471792,0.0109516,91301.0,91300.0,0.00016427]
[1764347471988,0.03429577,91301.0,91300.0,0.00016427]
[1764347472495,0.68429577,91301.0,91300.0,0.00016427]
[1764347472688,0.68429577,91301.0,91280.0,0.20332331]
[1764347472689,0.010954,91281.0,91280.0,0.20332331]
[1764347472881,0.0109544,91278.0,91271.0,0.20332331]
[1764347473385,0.0109521,91298.0,91273.0,0.0109549]
[1764347473586,0.0109528,91292.0,91288.0,0.20332331]
[1764347473887,0.02337612,91291.0,91289.0,0.010953]
[1764347474076,0.01111667,91295.0,91280.0,0.20332331]
[1764347474282,0.02337877,91294.0,91289.0,0.010953]
[1764347474479,0.00016427,91295.0,91293.0,0.0109526]
[1764347474791,0.00016427,91295.0,91293.0,0.4009526]
[1764347474990,0.00016427,91295.0,91293.0,0.0109526]
[1764347475383,0.00016427,91295.0,91289.0,0.0109529]
[1764347475584,0.0109527,91293.0,91285.0,0.20332331]
[1764347475791,0.0109527,91293.0,91285.0,0.63332331]
[1764347475989,0.0109527,91293.0,91291.0,0.0109528]
[1764347476189,0.00016427,91295.0,91293.0,0.0109525]
[1764347476894,0.0109507,91309.0,91293.0,0.35]
[1764347477092,0.02339347,91308.0,91306.0,0.010951]
[1764347477294,0.0109492,91322.0,91300.0,0.0109516]
[1764347477493,0.02339666,91321.0,91320.0,0.0109493]
[1764347477881,0.00027375,91326.0,91325.0,0.0109488]
[1764347478098,0.03461982,91326.0,91321.0,0.0109492]
[1764347478293,0.01122245,91326.0,91321.0,0.0109491]
[1764347478489,0.00027375,91326.0,91316.0,0.20332331]
[1764347478695,0.00027375,91326.0,91324.0,0.0109488]
[1764347479184,0.00027375,91326.0,91320.0,0.0109493]
[1764347479185,0.0109491,91322.0,91320.0,0.0109493]
[1764347479490,0.010949,91324.0,91320.0,0.0109493]
[1764347479691,0.010949,91324.0,91311.0,0.20348758]
[1764347479692,0.0109493,91321.0,91318.0,0.0109495]
[1764347480096,0.0109498,91317.0,91311.0,0.21996802]
[1764347480293,0.0109503,91313.0,91311.0,0.20348758]
[1764347480592,0.01222245,91326.0,91311.0,0.43016427]
[1764347480795,0.0109489,91324.0,91316.0,0.20332331]
[1764347480986,0.0109495,91320.0,91319.0,0.0109494]
[1764347481184,0.0109497,91318.0,91316.0,0.20332331]
[1764347481390,0.00127375,91326.0,91314.0,0.01095]
[1764347481391,0.01095,91315.0,91314.0,0.01095]
[1764347481595,0.00127375,91326.0,91314.0,0.2]
[1764347481796,0.00127375,91326.0,91324.0,0.0109488]
[1764347481992,0.00127375,91326.0,91324.0,0.3709488]
[1764347482389,0.00027375,91326.0,91324.0,0.3709488]
[1764347482591,0.00027363,91366.0,91324.0,0.36]
[1764347482790,0.00027363,91366.0,91356.0,0.40664662]
[1764347483289,0.0109443,91362.0,91356.0,0.20332331]
[1764347483592,0.00027363,91366.0,91357.0,0.0109449]
[1764347483798,0.0109446,91360.0,91356.0,0.20332331]
[1764347485090,0.0109449,91357.0,91356.0,0.20332331]
[1764347485296,0.010946,91348.0,91347.0,0.20332331]
[1764347485600,0.010946,91348.0,91340.0,0.010947]
[1764347485794,0.00027363,91366.0,91345.0,0.0109463]
[1764347485995,0.0109456,91351.0,91350.0,0.20332331]
[1764347486195,0.73027363,91366.0,91350.0,0.0109458]
[1764347486196,0.00027363,91366.0,91350.0,0.0109458]
[1764347486398,0.0109457,91351.0,91347.0,0.0109461]
[1764347487201,0.0109457,91351.0,91349.0,0.0109458]
[1764347487497,0.0109464,91346.0,91341.0,0.20332331]
[1764347487793,0.0109464,91346.0,91336.0,0.00016427]
[1764347487794,0.0109472,91338.0,91336.0,0.00016427]
[1764347488392,0.0109433,91371.0,91336.0,0.01111167]
[1764347488591,0.42027363,91366.0,91350.0,0.20332331]
[1764347488793,0.0109456,91351.0,91350.0,0.20332331]
[1764347488994,0.0109466,91343.0,91338.0,0.0109472]
[1764347489392,0.0109466,91343.0,91340.0,0.0109469]
[1764347489596,0.0109441,91364.0,91336.0,0.01111167]
[1764347489801,0.0109456,91351.0,91350.0,0.20332331]
[1764347489999,0.0109464,91345.0,91341.0,0.21427001]
[1764347490196,0.00027363,91366.0,91348.0,0.0109459]
[1764347490399,0.0109449,91358.0,91356.0,0.20332331]
[1764347490598,0.0109448,91358.0,91351.0,0.0109455]
[1764347490796,0.0109453,91354.0,91350.0,0.0109457]
[1764347491002,0.0109456,91352.0,91348.0,0.20332331]
[1764347491497,0.00027363,91366.0,91348.0,0.20332331]
[1764347491798,0.00027363,91366.0,91356.0,0.20332331]
[1764347492001,0.00027363,91366.0,91357.0,0.0109449]
[1764347492388,0.0109399,91400.0,91365.0,0.01367]
[1764347492596,0.01371,91410.0,91385.0,0.25404785]
[1764347492597,0.02321764,91394.0,91385.0,0.25404785]
[1764347492800,0.0109411,91389.0,91385.0,0.25404785]
[1764347492990,0.0109407,91393.0,91385.0,0.25404785]
[1764347493192,0.0109406,91393.0,91385.0,0.25404785]
[1764347493593,0.0109376,91419.0,91385.0,0.25404785]
[1764347493594,0.0109395,91402.0,91385.0,0.25404785]
[1764347493805,0.0109377,91418.0,91376.0,0.01374]
[1764347493806,0.0109394,91404.0,91380.0,0.25404785]
[1764347494104,0.010942,91381.0,91380.0,0.25404785]
[1764347494307,0.002,91389.0,91371.0,0.00016418]
[1764347494499,0.0109427,91376.0,91371.0,0.00016418]
[1764347494699,0.010943,91373.0,91371.0,0.00016418]
[1764347494898,0.0109429,91374.0,91371.0,0.00016418]
[1764347495499,0.0109429,91374.0,91371.0,0.016559]
[1764347496397,0.0109429,91374.0,91371.0,0.00016418]
[1764347496893,0.0109426,91377.0,91371.0,0.00016418]
[1764347497090,0.0109429,91375.0,91371.0,0.00016418]
[1764347497295,0.0109431,91373.0,91371.0,0.00016418]
[1764347497496,0.01371,91392.0,91371.0,0.00016418]
[1764347497497,0.01371,91392.0,91376.0,0.0109425]
[1764347497695,0.01371,91392.0,91371.0,0.27016418]
[1764347497696,0.010942,91382.0,91380.0,0.25404785]
[1764347498206,0.0109431,91372.0,91371.0,0.00016418]
[1764347498596,0.01371,91392.0,91374.0,0.0109428]
[1764347498894,0.01371,91392.0,91371.0,0.00016418]
[1764347498895,0.0109431,91372.0,91371.0,0.00016418]
[1764347499097,0.8509431,91372.0,91350.0,0.25404785]
[1764347499404,0.010946,91349.0,91340.0,0.25404785]
[1764347499604,0.0109445,91361.0,91340.0,0.25404785]
[1764347499799,0.05,91361.0,91350.0,0.25404785]
[1764347500004,0.0109456,91351.0,91350.0,0.25404785]
[1764347500204,0.0109445,91361.0,91352.0,0.0109455]
[1764347500400,0.01387387,91365.0,91354.0,0.0109452]
[1764347500602,0.00016387,91365.0,91354.0,0.32]
[1764347500801,0.00016387,91365.0,91363.0,0.0109442]
[1764347501194,0.00016387,91365.0,91363.0,0.2909442]
[1764347501396,0.00016387,91365.0,91363.0,0.0109442]
[1764347502404,0.00016387,91365.0,91360.0,0.01374]
[1764347502607,0.00016387,91365.0,91350.0,0.25404785]
[1764347502998,0.39016387,91365.0,91350.0,0.25404785]
[1764347503207,0.0109452,91355.0,91350.0,0.26499365]
[1764347503406,0.0109455,91353.0,91350.0,0.25404785]
[1764347503813,0.0109455,91353.0,91349.0,0.0109458]
[1764347504799,0.010946,91348.0,91343.0,0.25404785]
[1764347505205,0.010946,91348.0,91345.0,0.0109463]
[1764347505401,0.010946,91349.0,91347.0,0.0109461]
[1764347505612,0.0109456,91352.0,91347.0,0.0109461]
[1764347505810,0.0109456,91352.0,91349.0,0.0109458]
[1764347506013,0.01387387,91365.0,91343.0,0.25404785]
[1764347506315,0.0109456,91352.0,91347.0,0.0109461]
[1764347506812,0.0109456,91352.0,91343.0,0.25404785]
[1764347507010,0.0109461,91347.0,91336.0,0.0167457]
[1764347507209,0.0109461,91347.0,91340.0,0.25404785]
[1764347508611,0.4209461,91347.0,91340.0,0.25404785]
[1764347508802,0.0109461,91347.0,91340.0,0.25404785]
[1764347509008,0.0109461,91347.0,91340.0,0.26499475]
[1764347509309,0.01371,91350.0,91348.0,0.0109459]
[1764347509610,0.01387387,91365.0,91346.0,0.01111038]
[1764347509807,0.02330999,91364.0,91350.0,0.25404785]
[1764347510006,0.0109456,91351.0,91346.0,0.00016418]
[1764347510310,0.00016387,91365.0,91362.0,0.0109442]
[1764347510811,0.00016387,91365.0,91350.0,0.01374]
[1764347510812,0.0109446,91360.0,91355.0,0.25404785]
[1764347511013,0.0109443,91363.0,91361.0,0.0109444]
[1764347511408,0.00016387,91365.0,91355.0,0.25404785]
[1764347511610,0.0109444,91362.0,91361.0,0.0109443]
[1764347511807,0.0109449,91357.0,91356.0,0.0109449]
[1764347512114,0.00016387,91365.0,91355.0,0.25404785]
[1764347512310,0.0109445,91361.0,91358.0,0.0109447]
[1764347512810,0.0109441,91364.0,91363.0,0.0109441]
[1764347513414,0.00016387,91365.0,91363.0,0.0109441]
[1764347513720,0.01110787,91365.0,91363.0,0.0109441]
[1764347514807,0.00016387,91365.0,91363.0,0.0109441]
[1764347515112,0.00016387,91365.0,91364.0,0.01371]
[1764347515518,0.010943,91373.0,91372.0,0.0109431]
[1764347516316,0.0109421,91381.0,91380.0,0.010942]
[1764347516612,0.0109409,91391.0,91371.0,0.00016418]
[1764347516804,0.010942,91381.0,91380.0,0.26498995]
[1764347517005,0.01094,91399.0,91384.0,0.0109416]
[1764347517206,0.01094,91399.0,91380.0,0.25404785]
[1764347517207,0.010941,91390.0,91380.0,0.25404785]
[1764347517408,0.0109417,91385.0,91381.0,0.010942]
[1764347517712,0.0109419,91384.0,91383.0,0.0109417]
[1764347517908,0.01371,91392.0,91384.0,0.0109417]
[1764347518109,0.0109408,91392.0,91391.0,0.0109407]
[1764347518514,0.0109399,91399.0,91398.0,0.0109399]
[1764347518708,0.08094,91399.0,91389.0,0.25421203]
[1764347518912,0.00027351,91406.0,91399.0,0.0109398]
[1764347519105,0.001,91392.0,91391.0,0.0109408]
[1764347519315,0.00027351,91406.0,91401.0,0.0109396]
[1764347519516,0.0109394,91404.0,91401.0,0.0109396]
[1764347519715,0.00027351,91406.0,91392.0,0.01294]
[1764347519908,0.00027351,91406.0,91389.0,0.00016418]
[1764347519909,0.01569351,91406.0,91389.0,0.00016418]
[1764347520217,0.010941,91390.0,91389.0,0.00016418]
[1764347520413,0.0109437,91367.0,91360.0,0.25404785]
[1764347520619,0.01318,91378.0,91352.0,0.0109455]
[1764347520813,0.0109426,91377.0,91360.0,0.25404785]
[1764347521013,0.0109437,91368.0,91360.0,0.25404785]
[1764347521209,0.0109437,91368.0,91365.0,0.023884]
[1764347521412,0.00016418,91376.0,91365.0,0.37294]
[1764347521617,0.00016418,91376.0,91373.0,0.0109429]
[1764347522414,0.00016418,91376.0,91373.0,0.2909429]
[1764347522613,0.00016418,91376.0,91373.0,0.4109429]
[1764347522825,0.00016418,91376.0,91373.0,0.0409429]
[1764347523320,0.00016418,91376.0,91375.0,0.0109428]
[1764347523321,0.01110688,91376.0,91375.0,0.0109428]
[1764347523507,0.00027351,91406.0,91380.0,0.01294]
[1764347523709,0.00027351,91406.0,91394.0,0.25404785]
[1764347523710,0.0109404,91396.0,91394.0,0.25404785]
[1764347523911,0.010942,91382.0,91380.0,0.25404785]
[1764347524416,0.0109405,91395.0,91380.0,0.48698785]
[1764347524612,0.0109414,91387.0,91383.0,0.0109417]
[1764347524810,0.00027351,91406.0,91383.0,0.26]
[1764347525011,0.02303035,91405.0,91390.0,0.25404785]
[1764347525211,0.29027351,91406.0,91404.0,0.0109392]
[1764347525212,0.00027351,91406.0,91404.0,0.0109392]
[1764347525413,0.00027351,91406.0,91395.0,0.01294]
[1764347525617,0.00027351,91406.0,91390.0,0.25404785]
[1764347525618,0.00027351,91406.0,91391.0,0.0109408]
[1764347525822,0.0109401,91398.0,91394.0,0.0109405]
[1764347526013,0.00027351,91406.0,91391.0,0.0109408]
[1764347526214,0.0109404,91395.0,91391.0,0.0109408]
[1764347526415,0.0109407,91393.0,91390.0,0.25404785]
[1764347526612,0.0109392,91405.0,91390.0,0.67404785]
[1764347526915,0.00027351,91406.0,91403.0,0.0109393]
[1764347527109,0.00027351,91406.0,91403.0,0.4109393]
[1764347527311,0.0109372,91422.0,91395.0,0.01294]
[1764347527516,0.38,91422.0,91410.0,0.25404785]
[1764347527723,0.0109385,91411.0,91410.0,0.25404785]
[1764347527914,0.0241168,91425.0,91406.0,0.010939]
[1764347527915,0.01318,91425.0,91406.0,0.010939]
[1764347528121,0.0109385,91411.0,91410.0,0.25404785]
[1764347528310,0.0109393,91405.0,91401.0,0.25404785]
[1764347528514,0.0109384,91412.0,91406.0,0.010939]
[1764347528712,0.01318,91440.0,91406.0,0.010939]
[1764347528713,0.01318,91440.0,91410.0,0.01294]
[1764347528914,0.0109371,91423.0,91419.0,0.0109374]
[1764347529212,0.0109371,91423.0,91420.0,0.25404785]
[1764347530014,0.010937,91424.0,91420.0,0.26498515]
[1764347530215,0.0109353,91438.0,91412.0,0.00016409]
[1764347530216,0.0109366,91427.0,91425.0,0.01294]
[1764347530415,0.0109362,91430.0,91425.0,0.01294]
[1764347530723,0.0109346,91444.0,91438.0,0.0109351]
[1764347530925,0.01120779,91446.0,91436.0,0.25404785]
[1764347531119,0.02027339,91446.0,91443.0,0.0109346]
[1764347531313,0.02027339,91446.0,91439.0,0.010935]
[1764347531314,0.0109344,91445.0,91439.0,0.010935]
[1764347531518,0.01120779,91446.0,91437.0,0.0109353]
[1764347531713,0.00027339,91446.0,91443.0,0.0109346]
[1764347531916,0.30027339,91446.0,91437.0,0.0109353]
[1764347532120,0.30127339,91446.0,91437.0,0.0109353]
[1764347532625,0.30127339,91446.0,91436.0,0.27010853]
[1764347532626,0.0109351,91440.0,91436.0,0.25404785]
[1764347533024,0.0109356,91435.0,91432.0,0.00016409]
[1764347533426,0.7409356,91435.0,91432.0,0.00016409]
[1764347533726,0.5909356,91435.0,91432.0,0.00016409]
[1764347534220,0.3109356,91435.0,91432.0,0.00016409]
[1764347534427,0.001,91440.0,91433.0,0.0109358]
[1764347534618,0.001,91440.0,91436.0,0.25404785]
[1764347534821,0.0109355,91436.0,91432.0,0.00016409]
[1764347535013,0.67418,91440.0,91432.0,0.00016409]
[1764347535014,0.001,91440.0,91432.0,0.37016409]
[1764347535221,0.00027339,91446.0,91440.0,0.0238749]
[1764347535515,0.00027339,91446.0,91436.0,0.0109355]
[1764347535715,0.00027339,91446.0,91432.0,0.00016409]
[1764347535922,0.0109357,91435.0,91432.0,0.00016409]
[1764347536122,0.3809357,91435.0,91432.0,0.00016409]
[1764347536324,0.7209357,91435.0,91432.0,0.00016409]
[1764347537431,0.001,91436.0,91432.0,0.01109999]
[1764347537627,0.001,91436.0,91432.0,0.00016409]
[1764347537628,0.0119356,91436.0,91432.0,0.00016409]
[1764347537834,0.0109353,91438.0,91433.0,0.0109358]
[1764347538420,0.0109353,91437.0,91432.0,0.01109999]
[1764347538621,0.001,91436.0,91432.0,0.00016409]
[1764347538821,0.0109356,91435.0,91432.0,0.00016409]
[1764347539430,0.2209356,91435.0,91432.0,0.00016409]
[1764347539627,0.5909356,91435.0,91432.0,0.00016409]
[1764347540122,0.5909356,91435.0,91410.0,0.25404785]
[1764347540123,0.0109385,91411.0,91410.0,0.25404785]
[1764347540328,0.0109383,91413.0,91410.0,0.0109385]
[1764347540528,0.0109385,91411.0,91407.0,0.0109389]
[1764347540727,0.010937,91424.0,91403.0,0.25404785]
[1764347540728,0.0109393,91404.0,91403.0,0.25404785]
[1764347541026,0.01389,91425.0,91397.0,0.0109401]
[1764347541235,0.0109394,91403.0,91402.0,0.00016409]
[1764347542828,0.0554594,91403.0,91402.0,0.00016409]